bitfinex-derivatives/quotes_BTCF0:USTF0_20250709
["timestamp","ask_amount","ask_price","bid_price","bid_amount"]
[1752023467453,0.1831916,109150.0,109140.0,0.07321177]
[1752023467748,0.82385654,109150.0,109140.0,0.0323]
[1752023468052,0.82385654,109150.0,109140.0,0.07321177]
[1752023468352,0.80784654,109150.0,109140.0,0.0323]
[1752023468838,0.81769654,109150.0,109140.0,0.0323]
[1752023469038,0.78609654,109150.0,109140.0,0.04813]
[1752023469242,0.78609654,109150.0,109140.0,0.08053]
[1752023470353,0.78709654,109150.0,109140.0,0.08053]
[1752023470745,0.78609654,109150.0,109140.0,0.08053]
[1752023470945,0.78709654,109150.0,109140.0,0.0323]
[1752023471252,0.1832084,109140.0,109130.0,0.1271404]
[1752023471445,1.38330334,109140.0,109130.0,0.3568956]
[1752023471645,1.39315334,109140.0,109130.0,0.1982404]
[1752023471850,1.1436984,109140.0,109130.0,0.1982404]
[1752023472056,1.39315334,109140.0,109130.0,0.1982404]
[1752023472444,1.39415334,109140.0,109130.0,0.1982404]
[1752023473157,1.39415334,109140.0,109130.0,0.15732863]
[1752023474354,1.39415334,109140.0,109130.0,0.2394859]
[1752023474556,1.39415334,109140.0,109130.0,0.4227112]
[1752023476464,1.39415334,109140.0,109130.0,0.2394859]
[1752023477257,1.39415334,109140.0,109130.0,0.4227111]
[1752023477458,1.39415334,109140.0,109130.0,0.2394859]
[1752023477651,1.39415334,109140.0,109130.0,0.2149159]
[1752023478152,1.39415334,109140.0,109130.0,0.13275863]
[1752023478349,1.67430828,109140.0,109130.0,0.10115863]
[1752023478550,1.70530828,109140.0,109130.0,0.08532863]
[1752023478854,1.70530828,109140.0,109130.0,0.12628259]
[1752023479054,1.71146828,109140.0,109130.0,0.12628259]
[1752023479657,1.70530828,109140.0,109130.0,0.12628259]
[1752023480359,1.70530828,109140.0,109130.0,0.14211259]
[1752023480554,1.45585334,109140.0,109130.0,0.14211259]
[1752023481661,1.44600334,109140.0,109130.0,0.12628259]
[1752023481864,1.44600334,109140.0,109130.0,0.14211259]
[1752023482854,1.44600334,109140.0,109130.0,0.11141259]
[1752023483059,1.69545828,109140.0,109130.0,0.09558259]
[1752023483250,1.69545828,109140.0,109130.0,0.04095396]
[1752023485261,1.69545828,109140.0,109130.0,0.09558259]
[1752023485464,1.70161828,109140.0,109130.0,0.09558259]
[1752023485853,1.71101781,109140.0,109130.0,0.09558259]
[1752023486955,1.71101781,109140.0,109130.0,0.04095396]
[1752023487161,1.2027084,109140.0,109130.0,0.09558259]
[1752023487364,1.70161828,109140.0,109130.0,0.09558259]
[1752023492370,0.99311828,109140.0,109130.0,0.11067259]
[1752023492569,1.64208828,109140.0,109130.0,0.10051863]
[1752023492765,1.70305568,109140.0,109130.0,0.14152999]
[1752023492971,1.70921568,109140.0,109130.0,0.09563999]
[1752023493963,1.70921568,109140.0,109130.0,0.10638322]
[1752023495266,1.70921568,109140.0,109130.0,0.10638338]
[1752023497972,1.95875432,109140.0,109130.0,0.10638338]
[1752023498166,1.70921568,109140.0,109130.0,0.10638338]
[1752023498574,1.95875432,109140.0,109130.0,0.10638338]
[1752023498769,1.70921568,109140.0,109130.0,0.10638338]
[1752023500865,1.70921568,109140.0,109130.0,0.10638359]
[1752023506878,1.70305568,109140.0,109130.0,0.10638359]
[1752023507262,1.70305568,109140.0,109130.0,0.08046223]
[1752023507977,1.70305568,109140.0,109130.0,0.06537223]
[1752023508680,1.06393568,109140.0,109130.0,0.26368733]
[1752023508978,0.1842084,109140.0,109130.0,0.61797324]
[1752023509165,0.001,109140.0,109130.0,0.62924461]
[1752023509574,0.001,109140.0,109130.0,0.99924461]
[1752023509871,0.001,109140.0,109130.0,1.18250061]
[1752023510073,0.001,109140.0,109130.0,1.10034334]
[1752023510381,0.2290003,109150.0,109140.0,0.1832084]
[1752023510578,0.2290003,109150.0,109140.0,0.84998242]
[1752023510879,0.2290003,109150.0,109140.0,1.15231672]
[1752023511070,0.2290003,109150.0,109140.0,1.23432657]
[1752023511272,0.2290003,109150.0,109140.0,1.15231672]
[1752023512079,0.001,109150.0,109140.0,1.17965343]
[1752023512476,0.001,109150.0,109140.0,1.28929716]
[1752023512779,0.001,109150.0,109140.0,1.02404731]
[1752023512977,0.001,109150.0,109140.0,1.20728731]
[1752023513482,0.001,109150.0,109140.0,1.17951323]
[1752023513680,0.001,109150.0,109140.0,0.99627323]
[1752023513881,0.001,109150.0,109140.0,1.63499323]
[1752023514174,0.27491938,109160.0,109150.0,0.1831916]
[1752023514379,0.27491938,109160.0,109150.0,0.95884468]
[1752023515389,0.27591938,109160.0,109150.0,0.95884468]
[1752023516382,0.18432818,109160.0,109150.0,0.95884468]
[1752023516582,0.18432818,109160.0,109150.0,0.99979761]
[1752023517287,0.18432818,109160.0,109150.0,0.91792796]
[1752023517484,0.00113758,109160.0,109150.0,0.91792796]
[1752023517687,0.00113758,109160.0,109150.0,0.87975796]
[1752023517877,0.00113758,109160.0,109150.0,0.99208003]
[1752023518283,0.00113758,109160.0,109150.0,1.63068003]
[1752023518483,0.00113758,109160.0,109150.0,1.61993643]
[1752023518686,0.00113758,109160.0,109150.0,1.66078816]
[1752023519189,0.00113758,109160.0,109150.0,1.6607766]
[1752023521288,0.00113758,109160.0,109150.0,1.6454066]
[1752023521590,0.00113758,109160.0,109150.0,1.6453666]
[1752023522884,0.00113758,109160.0,109150.0,1.86301453]
[1752023523194,0.00113758,109160.0,109150.0,1.90404401]
[1752023524591,0.00113758,109160.0,109150.0,1.26548401]
[1752023524794,0.00113758,109160.0,109150.0,1.65459688]
[1752023524994,0.00113758,109160.0,109150.0,1.90396401]
[1752023527696,0.00113758,109160.0,109150.0,1.82209436]
[1752023528493,0.00113758,109160.0,109150.0,1.83283333]
[1752023529094,0.18431238,109160.0,109150.0,0.9449862]
[1752023529294,0.18431238,109160.0,109150.0,1.2787962]
[1752023532594,0.19416238,109160.0,109150.0,0.6403562]
[1752023532797,0.43367951,109160.0,109150.0,1.2787562]
[1752023533088,0.47652951,109160.0,109150.0,1.2787562]
[1752023534094,0.50802951,109160.0,109150.0,1.2787562]
[1752023534491,0.25866238,109160.0,109150.0,1.2787562]
[1752023534690,0.25866238,109160.0,109150.0,0.9869162]
[1752023534889,0.25866238,109160.0,109150.0,1.06878585]
[1752023535598,0.25866238,109160.0,109150.0,1.06878635]
[1752023536998,0.25866238,109160.0,109150.0,1.01423072]
[1752023537399,0.25866238,109160.0,109150.0,1.26359785]
[1752023539204,0.25866238,109160.0,109150.0,1.29137193]
[1752023540102,0.25866238,109160.0,109150.0,1.28063246]
[1752023540297,0.25866238,109160.0,109150.0,1.29137203]
[1752023540699,0.24881238,109160.0,109150.0,0.90096117]
[1752023540901,0.49816979,109160.0,109150.0,1.15031858]
[1752023541100,0.50801979,109160.0,109150.0,1.15031858]
[1752023541411,0.50801979,109160.0,109150.0,1.25996231]
[1752023542806,1.7156172,109160.0,109150.0,0.19393117]
[1752023543001,1.7156172,109160.0,109150.0,0.20975117]
[1752023543200,1.7156172,109160.0,109150.0,0.19393117]
[1752023543598,1.7156172,109160.0,109150.0,0.20975117]
[1752023544195,1.7156172,109160.0,109150.0,0.23320117]
[1752023544907,1.46631194,109160.0,109150.0,0.31521603]
[1752023545303,1.46631194,109160.0,109150.0,0.31521677]
[1752023547301,1.46631194,109160.0,109150.0,0.10857517]
[1752023547706,1.46631194,109160.0,109150.0,0.29176677]
[1752023548209,1.45646194,109160.0,109150.0,0.29176677]
[1752023548403,1.45646194,109160.0,109150.0,0.27594677]
[1752023548606,1.45646194,109160.0,109150.0,0.29176677]
[1752023549010,1.45646194,109160.0,109150.0,0.29176688]
[1752023549211,1.20705238,109160.0,109150.0,0.29176688]
[1752023549513,1.45646194,109160.0,109150.0,0.29176688]
[1752023551802,1.45646194,109160.0,109150.0,0.27594688]
[1752023552903,1.45646194,109160.0,109150.0,0.29176688]
[1752023553410,1.45646194,109160.0,109150.0,0.2644048]
[1752023554313,1.45646194,109160.0,109150.0,0.25366438]
[1752023554715,1.20705238,109160.0,109150.0,0.25366438]
[1752023555011,1.45646194,109160.0,109150.0,0.25366438]
[1752023555514,1.45646194,109160.0,109150.0,0.09564475]
[1752023555515,1.46262194,109160.0,109150.0,0.09564475]
[1752023555708,1.46262194,109160.0,109150.0,0.04099197]
[1752023556609,1.46262194,109160.0,109150.0,0.22418347]
[1752023556814,1.46262194,109160.0,109150.0,0.24000347]
[1752023557620,1.46262194,109160.0,109150.0,0.05681197]
[1752023557917,1.46262194,109160.0,109150.0,0.04099197]
[1752023559119,1.45646194,109160.0,109150.0,0.04099197]
[1752023563218,1.45646194,109160.0,109150.0,0.09564475]
[1752023564910,1.7059301,109160.0,109150.0,0.09564475]
[1752023566519,1.20705238,109160.0,109150.0,0.09564475]
[1752023566716,1.7059301,109160.0,109150.0,0.11146475]
[1752023571028,1.7059301,109160.0,109150.0,0.09564475]
[1752023574824,1.7059301,109160.0,109150.0,0.04099197]
[1752023577329,1.7059301,109160.0,109150.0,0.09564475]
[1752023577516,0.1831917,109150.0,109140.0,0.13311931]
[1752023577820,1.07271942,109150.0,109140.0,0.18776403]
[1752023578014,1.07271942,109150.0,109140.0,0.10574917]
[1752023578617,1.07887942,109150.0,109140.0,0.07344917]
[1752023580526,1.07887942,109150.0,109140.0,0.07444917]
[1752023580920,1.07887942,109150.0,109140.0,0.07344917]
[1752023581121,1.07987942,109150.0,109140.0,0.07344917]
[1752023581526,1.07987942,109150.0,109140.0,0.05464472]
[1752023581724,0.1832085,109140.0,109130.0,0.38617138]
[1752023582029,1.73005622,109140.0,109130.0,0.13648472]
[1752023582323,1.72020622,109140.0,109130.0,0.28661002]
[1752023583123,1.72020622,109140.0,109130.0,0.28761002]
[1752023585031,1.2213285,109140.0,109130.0,0.28761002]
[1752023585221,1.72020622,109140.0,109130.0,0.28761002]
[1752023585422,1.08248622,109140.0,109130.0,0.28761002]
[1752023585617,1.07032736,109140.0,109130.0,0.34360002]
[1752023586330,1.31976622,109140.0,109130.0,0.34360002]
[1752023586629,0.68208622,109140.0,109130.0,0.34360002]
[1752023586831,1.31976622,109140.0,109130.0,0.34360002]
[1752023587731,1.31976622,109140.0,109130.0,0.59303888]
[1752023588926,1.66976622,109140.0,109130.0,0.59303888]
[1752023589131,1.31976622,109140.0,109130.0,0.59303888]
[1752023589429,1.31976622,109140.0,109130.0,0.34360002]
[1752023589930,1.31976622,109140.0,109130.0,0.32051002]
[1752023590130,1.31976622,109140.0,109130.0,0.34360002]
[1752023590930,1.31976622,109140.0,109130.0,0.32051002]
[1752023591126,1.31976622,109140.0,109130.0,0.34360002]
[1752023594536,1.31976622,109140.0,109130.0,0.32051002]
[1752023594723,0.8208885,109140.0,109130.0,0.30497002]
[1752023594924,1.70961622,109140.0,109130.0,0.32051002]
[1752023596528,1.73991622,109140.0,109130.0,0.32051002]
[1752023598432,1.73006622,109140.0,109130.0,0.32051002]
[1752023602130,1.34978622,109140.0,109130.0,0.32051002]
[1752023603334,1.34978622,109140.0,109130.0,0.2658653]
[1752023604028,0.71238622,109140.0,109130.0,0.2903053]
[1752023604232,1.34974622,109140.0,109130.0,0.2903053]
[1752023604429,1.34974622,109140.0,109130.0,0.2658653]
[1752023604734,1.34974622,109140.0,109130.0,0.2903053]
[1752023605634,1.34974622,109140.0,109130.0,0.2658653]
[1752023606136,0.8508685,109140.0,109130.0,0.2658653]
[1752023606329,1.34974622,109140.0,109130.0,0.2658653]
[1752023606732,1.34974622,109140.0,109130.0,0.32051002]
[1752023609043,1.34974622,109140.0,109130.0,0.28761002]
[1752023609243,1.37984622,109140.0,109130.0,0.28761002]
[1752023610746,0.83304736,109140.0,109130.0,0.28761002]
[1752023610936,1.06984736,109140.0,109130.0,0.56148888]
[1752023611141,1.06984736,109140.0,109130.0,0.59208888]
[1752023611647,1.06984736,109140.0,109130.0,0.67410374]
[1752023612246,1.06984736,109140.0,109130.0,0.67710374]
[1752023613343,1.06984736,109140.0,109130.0,0.54044416]
[1752023614043,0.43264736,109140.0,109130.0,0.54044416]
[1752023614350,1.06980736,109140.0,109130.0,0.62249846]
[1752023614749,1.06980736,109140.0,109130.0,0.63324041]
[1752023616950,1.39980736,109140.0,109130.0,0.63324041]
[1752023617150,0.8202485,109140.0,109130.0,0.63324041]
[1752023617352,1.06968736,109140.0,109130.0,0.63324041]
[1752023623152,1.31912622,109140.0,109130.0,0.63324041]
[1752023623953,1.06968736,109140.0,109130.0,0.63324041]
[1752023625756,0.8202485,109140.0,109130.0,0.63324041]
[1752023626053,1.07953736,109140.0,109130.0,0.63324041]
[1752023626253,1.07953736,109140.0,109130.0,0.38380155]
[1752023626254,1.06968736,109140.0,109130.0,0.38380155]
[1752023626445,1.06968736,109140.0,109130.0,0.63324041]
[1752023626851,1.31912622,109140.0,109130.0,0.63324041]
[1752023627256,0.8202485,109140.0,109130.0,0.63324041]
[1752023627457,1.06968736,109140.0,109130.0,0.63324041]
[1752023627850,1.06968766,109140.0,109130.0,0.63324041]
[1752023628154,1.06968766,109140.0,109130.0,0.55118611]
[1752023628346,1.06968766,109140.0,109130.0,0.55118588]
[1752023629347,1.06968766,109140.0,109130.0,0.66082961]
[1752023631454,1.10148766,109140.0,109130.0,0.66082961]
[1752023633054,1.10148766,109140.0,109130.0,0.41139075]
[1752023633246,1.10148766,109140.0,109130.0,0.66082961]
[1752023634051,1.10148766,109140.0,109130.0,0.54044416]
[1752023634255,1.10148766,109140.0,109130.0,0.55118612]
[1752023634756,1.10148766,109140.0,109130.0,0.30174726]
[1752023634956,1.10148766,109140.0,109130.0,0.55118612]
[1752023635156,1.10148766,109140.0,109130.0,0.66082985]
[1752023636258,1.10148766,109140.0,109130.0,0.55118612]
[1752023636559,1.10148766,109140.0,109130.0,0.66082985]
[1752023640967,1.10148766,109140.0,109130.0,0.55118612]
[1752023641559,0.8520488,109140.0,109130.0,0.78120612]
[1752023641760,0.2614052,109150.0,109140.0,0.1832088]
[1752023641956,0.8654852,109150.0,109140.0,0.69282848]
[1752023642159,1.11492406,109150.0,109140.0,0.50458962]
[1752023642360,1.11492406,109150.0,109140.0,0.58663593]
[1752023642560,1.14652406,109150.0,109140.0,0.58663593]
[1752023642763,1.14652406,109150.0,109140.0,0.50458962]
[1752023643270,1.14652406,109150.0,109140.0,0.58663389]
[1752023643469,1.14652406,109150.0,109140.0,0.64132188]
[1752023643771,1.14652406,109150.0,109140.0,0.58663389]
[1752023643971,1.14652406,109150.0,109140.0,0.6413214]
[1752023644970,0.8970852,109150.0,109140.0,0.6413214]
[1752023645167,0.8970852,109150.0,109140.0,0.6638514]
[1752023645168,1.15637406,109150.0,109140.0,0.6638514]
[1752023645370,1.15637406,109150.0,109140.0,0.6804814]
[1752023646971,1.15629406,109150.0,109140.0,0.6804814]
[1752023647473,1.15629406,109150.0,109140.0,0.6502814]
[1752023647666,1.18829406,109150.0,109140.0,0.61728418]
[1752023647869,1.18829406,109150.0,109140.0,0.56823713]
[1752023648767,1.18829406,109150.0,109140.0,0.59776314]
[1752023649273,1.18829406,109150.0,109140.0,0.34832428]
[1752023649473,1.18829406,109150.0,109140.0,0.59776314]
[1752023649668,1.24328957,109150.0,109140.0,0.44927766]
[1752023649870,1.02980231,109150.0,109140.0,0.1832088]
[1752023650066,1.27924117,109150.0,109140.0,0.43264766]
[1752023650266,1.27924117,109150.0,109140.0,0.50390766]
[1752023651273,1.27924117,109150.0,109140.0,0.2544688]
[1752023651575,1.27924117,109150.0,109140.0,0.1926514]
[1752023651773,1.27924117,109150.0,109140.0,0.3592302]
[1752023651973,1.55424667,109150.0,109140.0,0.3758602]
[1752023652674,1.55424667,109150.0,109140.0,0.3592302]
[1752023652862,0.91784667,109150.0,109140.0,0.3983902]
[1752023653067,1.57013667,109150.0,109140.0,0.3758602]
[1752023653472,1.27920117,109150.0,109140.0,0.47180766]
[1752023653966,1.27920117,109150.0,109140.0,0.44927766]
[1752023654168,1.27920117,109150.0,109140.0,0.46157444]
[1752023654578,0.64284117,109150.0,109140.0,0.46157444]
[1752023654778,1.29509117,109150.0,109140.0,0.46157444]
[1752023655171,1.29509117,109150.0,109140.0,0.48410444]
[1752023655976,1.29509117,109150.0,109140.0,0.46157444]
[1752023656777,1.29509117,109150.0,109140.0,0.48410444]
[1752023657180,0.65877117,109150.0,109140.0,0.48410444]
[1752023657567,1.29505117,109150.0,109140.0,0.46157444]
[1752023657770,1.29505117,109150.0,109140.0,0.48410444]
[1752023658382,0.13452551,109150.0,109140.0,0.85410444]
[1752023658677,0.05499551,109150.0,109140.0,1.1035433]
[1752023658879,0.05499551,109150.0,109140.0,1.1671433]
[1752023659776,0.05499551,109150.0,109140.0,0.83720645]
[1752023659980,0.05499551,109150.0,109140.0,1.15484652]
[1752023660281,0.07092551,109150.0,109140.0,1.15484652]
[1752023660481,0.05499551,109150.0,109140.0,1.15484652]
[1752023661780,0.07092551,109150.0,109140.0,1.15484652]
[1752023661982,0.07006551,109150.0,109140.0,1.28167629]
[1752023662683,0.25325771,109150.0,109140.0,1.28167629]
[1752023663276,0.07006551,109150.0,109140.0,1.28167629]
[1752023663986,0.07006551,109150.0,109140.0,1.30664629]
[1752023664785,0.07006551,109150.0,109140.0,1.22416142]
[1752023664979,0.07006551,109150.0,109140.0,1.41908652]
[1752023666088,0.25325751,109150.0,109140.0,1.41908652]
[1752023667382,0.07006551,109150.0,109140.0,1.41908652]
[1752023667785,0.26225829,109150.0,109140.0,1.41908652]
[1752023667984,0.26225829,109150.0,109140.0,1.25411678]
[1752023668487,0.07006551,109150.0,109140.0,1.25411678]
[1752023669190,0.01507,109150.0,109140.0,1.25411678]
[1752023672189,0.58755524,109160.0,109150.0,0.183192]
[1752023672390,0.60262524,109160.0,109150.0,1.72068086]
[1752023672587,0.60262524,109160.0,109150.0,1.70475086]
[1752023674191,0.60262524,109160.0,109150.0,1.06867086]
[1752023674392,0.60262524,109160.0,109150.0,1.07798262]
[1752023674585,0.55783004,109160.0,109150.0,1.07798262]
[1752023675693,0.54276004,109160.0,109150.0,1.07798262]
[1752023675993,0.58281004,109160.0,109150.0,1.07798262]
[1752023676690,0.35382644,109160.0,109150.0,1.07798262]
[1752023676993,0.53700174,109160.0,109150.0,1.07798262]
[1752023677388,0.35382644,109160.0,109150.0,1.41798262]
[1752023677792,0.35382644,109160.0,109150.0,1.44858262]
[1752023678494,0.32884644,109160.0,109150.0,1.44858262]
[1752023678691,0.35382644,109160.0,109150.0,1.44858262]
[1752023679783,0.10438758,109160.0,109150.0,1.44858262]
[1752023679988,0.35382644,109160.0,109150.0,1.44858262]
[1752023681094,0.10438758,109160.0,109150.0,1.44858262]
[1752023681290,0.35382644,109160.0,109150.0,1.45985244]
[1752023681491,0.35368886,109160.0,109150.0,1.45985244]
[1752023681692,0.34282913,109160.0,109150.0,1.47417185]
[1752023682389,0.34282913,109160.0,109150.0,1.47364118]
[1752023683098,0.34282913,109160.0,109150.0,1.48441037]
[1752023683298,0.34282913,109160.0,109150.0,1.47364118]
[1752023683595,0.09339027,109160.0,109150.0,1.47364118]
[1752023683801,0.09239027,109160.0,109150.0,1.47564118]
[1752023683998,0.09239027,109160.0,109150.0,1.22820232]
[1752023684200,0.09239027,109160.0,109150.0,1.47764118]
[1752023684393,0.27556547,109160.0,109150.0,1.47764118]
[1752023684800,0.27556547,109160.0,109150.0,1.22820232]
[1752023684996,0.52500433,109160.0,109150.0,1.47764118]
[1752023685295,0.50002433,109160.0,109150.0,1.47764118]
[1752023685999,0.52500433,109160.0,109150.0,1.47764118]
[1752023686402,0.52500433,109160.0,109150.0,1.48840613]
[1752023686700,0.09239027,109160.0,109150.0,1.47764118]
[1752023686900,0.34182913,109160.0,109150.0,1.22820232]
[1752023687200,0.34182913,109160.0,109150.0,1.47764118]
[1752023688097,0.31684913,109160.0,109150.0,1.47764118]
[1752023688300,0.06741027,109160.0,109150.0,1.47764118]
[1752023688605,0.04767,109160.0,109150.0,1.47764118]
[1752023688801,0.53617036,109170.0,109160.0,0.1831752]
[1752023689006,0.53617036,109170.0,109160.0,0.92506721]
[1752023689206,0.55124036,109170.0,109160.0,0.92506721]
[1752023689503,0.55124036,109170.0,109160.0,1.03425127]
[1752023690105,0.55124036,109170.0,109160.0,1.03625127]
[1752023690306,0.34695053,109180.0,109170.0,0.1831585]
[1752023690600,0.95643939,109180.0,109170.0,1.14839918]
[1752023690805,0.98783939,109180.0,109170.0,1.14839918]
[1752023691300,0.98783939,109180.0,109170.0,0.89896032]
[1752023691501,1.23727825,109180.0,109170.0,0.89892032]
[1752023691701,1.23727825,109180.0,109170.0,0.26520032]
[1752023692099,1.26807825,109180.0,109170.0,0.26520032]
[1752023692298,1.26807825,109180.0,109170.0,0.25088091]
[1752023693507,1.26807825,109180.0,109170.0,0.25188091]
[1752023694605,1.26807825,109180.0,109170.0,0.36106584]
[1752023695208,1.26807825,109180.0,109170.0,0.25188091]
[1752023698106,1.26807825,109180.0,109170.0,0.36106584]
[1752023698716,1.26807825,109180.0,109170.0,0.36106506]
[1752023698906,1.90367825,109180.0,109170.0,0.25188013]
[1752023700616,1.90367825,109180.0,109170.0,0.06872163]
[1752023700811,2.15311711,109180.0,109170.0,0.15061338]
[1752023701116,2.15311711,109180.0,109170.0,0.16218054]
[1752023701714,2.58630911,109180.0,109170.0,0.15144139]
[1752023701914,2.58630911,109180.0,109170.0,0.20605469]
[1752023702416,2.58630911,109180.0,109170.0,0.12416294]
[1752023702605,2.58630911,109180.0,109170.0,0.16512524]
[1752023703510,2.58630911,109180.0,109170.0,0.11051194]
[1752023704013,1.95070911,109180.0,109170.0,0.11051194]
[1752023704318,2.58626911,109180.0,109170.0,0.11051194]
[1752023704517,2.58626911,109180.0,109170.0,0.11065355]
[1752023705214,2.33626911,109180.0,109170.0,0.12430455]
[1752023707215,2.33626911,109180.0,109170.0,0.16526135]
[1752023707413,2.33626911,109180.0,109170.0,0.12430455]
[1752023707610,2.33626911,109180.0,109170.0,0.16526231]
[1752023708911,2.33626911,109180.0,109170.0,0.12430455]
[1752023709311,2.33626911,109180.0,109170.0,0.16525432]
[1752023709915,2.33626911,109180.0,109170.0,0.12430455]
[1752023710116,2.33626911,109180.0,109170.0,0.16525267]
[1752023711518,2.33626911,109180.0,109170.0,0.1795734]
[1752023712720,2.33626911,109180.0,109170.0,0.1249601]
[1752023713012,2.33626911,109180.0,109170.0,0.1535439]
[1752023713321,2.33626911,109180.0,109170.0,0.17960463]
[1752023713624,2.33626911,109180.0,109170.0,0.16528387]
[1752023713824,1.58795253,109180.0,109170.0,0.16528387]
[1752023714120,2.33626911,109180.0,109170.0,0.16528387]
[1752023714311,2.33626911,109180.0,109170.0,0.12433575]
[1752023714708,2.15307711,109180.0,109170.0,0.16527274]
[1752023714912,1.51751711,109180.0,109170.0,0.12433575]
[1752023715113,2.15295711,109180.0,109170.0,0.12433575]
[1752023716718,2.15295711,109180.0,109170.0,0.16527106]
[1752023717423,2.15295711,109180.0,109170.0,0.16527149]
[1752023717615,2.15295711,109180.0,109170.0,0.17959184]
[1752023718419,2.15295711,109180.0,109170.0,0.0840428]
[1752023718813,2.15295711,109180.0,109170.0,0.08380654]
[1752023719720,2.15295711,109180.0,109170.0,0.06848619]
[1752023719926,2.15295711,109180.0,109170.0,0.06948619]
[1752023720924,2.15295711,109180.0,109170.0,0.06748619]
[1752023721429,2.15295711,109180.0,109170.0,0.06648619]
[1752023722724,2.15295711,109180.0,109170.0,0.08080685]
[1752023725821,1.26807825,109180.0,109170.0,0.08080685]
[1752023726017,1.20465825,109180.0,109170.0,0.09370685]
[1752023726217,1.83993825,109180.0,109170.0,0.15819226]
[1752023726522,2.08937711,109180.0,109170.0,0.14529226]
[1752023726723,2.15167711,109180.0,109170.0,0.14529226]
[1752023727326,2.15167711,109180.0,109170.0,0.08079226]
[1752023727715,0.1831753,109160.0,109150.0,0.05475088]
[1752023727916,1.98674188,109160.0,109150.0,0.00013758]
[1752023728121,2.04904188,109160.0,109150.0,0.00013758]
[1752023728522,2.04904188,109160.0,109150.0,8e-08]
[1752023728722,0.1832088,109140.0,109130.0,0.01911759]
[1752023728926,1.72758168,109140.0,109130.0,0.01911759]
[1752023729129,1.79138168,109140.0,109130.0,0.01911759]
[1752023730633,1.79138168,109140.0,109130.0,0.02511759]
[1752023734133,1.79138168,109140.0,109130.0,0.05611759]
[1752023735135,1.79138168,109140.0,109130.0,0.13800934]
[1752023736749,1.80061603,109140.0,109130.0,0.13800934]
[1752023737047,1.80061603,109140.0,109130.0,0.05611759]
[1752023739750,1.80061603,109140.0,109130.0,0.17546807]
[1752023739949,1.76064603,109140.0,109130.0,0.17546807]
[1752023740149,1.78440603,109140.0,109130.0,0.09357632]
[1752023741047,1.78440603,109140.0,109130.0,0.07045873]
[1752023741351,1.78540603,109140.0,109130.0,0.06845873]
[1752023741752,1.78540603,109140.0,109130.0,0.05306172]
[1752023743653,1.78540603,109140.0,109130.0,0.02629849]
[1752023744752,1.78540603,109140.0,109130.0,0.02638815]
[1752023746648,1.78540603,109140.0,109130.0,0.00046335]
[1752023746846,1.88540603,109140.0,109130.0,5e-08]
[1752023747046,0.1832424,109120.0,109110.0,0.06513293]
[1752023747247,1.45419384,109120.0,109110.0,0.06513293]
[1752023747450,1.51889384,109120.0,109110.0,0.06513293]
[1752023748254,1.51889384,109120.0,109110.0,0.06713293]
[1752023750654,1.54265384,109120.0,109110.0,0.06713293]
[1752023750857,1.7923423,109120.0,109110.0,0.06713293]
[1752023751052,1.7523723,109120.0,109110.0,0.06713293]
[1752023751254,1.8480614,109120.0,109110.0,0.06713293]
[1752023751855,1.8480614,109120.0,109110.0,0.06813293]
[1752023753660,1.8480614,109120.0,109110.0,0.10906443]
[1752023754958,1.3487915,109120.0,109110.0,0.10906443]
[1752023755263,0.2789315,109120.0,109110.0,0.31596883]
[1752023755468,0.8183194,109130.0,109120.0,0.1832424]
[1752023755770,1.08358435,109130.0,109120.0,0.31965871]
[1752023755954,0.2070294,109130.0,109120.0,0.31965871]
[1752023756155,0.43287435,109130.0,109120.0,0.56929366]
[1752023756356,0.52446755,109140.0,109130.0,0.1832256]
[1752023756558,1.4329725,109140.0,109130.0,0.2990571]
[1752023757963,0.7978925,109140.0,109130.0,0.2990571]
[1752023758161,1.17513755,109140.0,109130.0,0.2990571]
[1752023758465,1.15950755,109140.0,109130.0,0.5594351]
[1752023758666,1.15950755,109140.0,109130.0,0.61754188]
[1752023758865,1.15932864,109140.0,109130.0,0.36790693]
[1752023759066,1.15932864,109140.0,109130.0,0.33871721]
[1752023759268,1.15932864,109140.0,109130.0,0.37968803]
[1752023759565,1.15932864,109140.0,109130.0,0.38268803]
[1752023759960,0.52428864,109140.0,109130.0,0.38268803]
[1752023760158,0.52428864,109140.0,109130.0,0.39343082]
[1752023760367,0.8640273,109140.0,109130.0,1.06403582]
[1752023760562,0.1832088,109140.0,109130.0,1.15498166]
[1752023760765,0.1832088,109140.0,109130.0,0.56469016]
[1752023760967,0.1832088,109140.0,109130.0,0.57543231]
[1752023761163,0.1832088,109140.0,109130.0,0.56737231]
[1752023761359,0.1832088,109140.0,109130.0,0.57529833]
[1752023763256,0.1832088,109140.0,109130.0,0.57529826]
[1752023764273,0.1832088,109140.0,109130.0,1.0080103]
[1752023764472,0.1832088,109140.0,109130.0,0.75855426]
[1752023765170,0.1832088,109140.0,109130.0,0.73112915]
[1752023766675,0.1832088,109140.0,109130.0,0.54787315]
[1752023767876,0.1832088,109140.0,109130.0,0.53981315]
[1752023769976,0.1832088,109140.0,109130.0,0.53981169]
[1752023770575,0.1832088,109140.0,109130.0,0.48534505]
[1752023772470,0.43266484,109140.0,109130.0,0.43953985]
[1752023772670,0.47208484,109140.0,109130.0,0.43037531]
[1752023772866,0.47208484,109140.0,109130.0,0.41747531]
[1752023773280,0.53508484,109140.0,109130.0,0.43037531]
[1752023773474,0.90508484,109140.0,109130.0,0.34017171]
[1752023773871,0.53508484,109140.0,109130.0,0.35307171]
[1752023774178,0.90508484,109140.0,109130.0,0.35307171]
[1752023775183,0.53508484,109140.0,109130.0,0.40753835]
[1752023775878,0.53508484,109140.0,109130.0,0.40745108]
[1752023776173,1.11454088,109140.0,109130.0,0.14792268]
[1752023776373,1.74914088,109140.0,109130.0,0.33114828]
[1752023776580,1.49968484,109140.0,109130.0,0.27668164]
[1752023777379,1.49968484,109140.0,109130.0,0.33114828]
[1752023778678,1.49968484,109140.0,109130.0,0.27668164]
[1752023779078,1.49968484,109140.0,109130.0,0.33114828]
[1752023779882,1.49968484,109140.0,109130.0,0.27668164]
[1752023780178,1.49968484,109140.0,109130.0,0.33114828]
[1752023781381,1.46026484,109140.0,109130.0,0.31824828]
[1752023781575,1.48507484,109140.0,109130.0,0.3182503]
[1752023781770,1.15507484,109140.0,109130.0,0.3182503]
[1752023781972,1.47507484,109140.0,109130.0,0.3182503]
[1752023782181,1.15507484,109140.0,109130.0,0.3182503]
[1752023782377,1.47507484,109140.0,109130.0,0.3182503]
[1752023782783,1.72453088,109140.0,109130.0,0.1350247]
[1752023785982,1.72453088,109140.0,109130.0,0.06981608]
[1752023786482,1.72453088,109140.0,109130.0,0.05549265]
[1752023786683,1.72453088,109140.0,109130.0,0.0704307]
[1752023786884,1.72453088,109140.0,109130.0,0.04397082]
[1752023787488,1.72453088,109140.0,109130.0,0.08116113]
[1752023787888,1.72453088,109140.0,109130.0,0.12214424]
[1752023788088,1.72453088,109140.0,109130.0,0.04397082]
[1752023788276,1.72453088,109140.0,109130.0,0.0811626]
[1752023788476,1.72453088,109140.0,109130.0,0.12114571]
[1752023788680,1.72553088,109140.0,109130.0,0.11914571]
[1752023789087,1.72553088,109140.0,109130.0,0.0781626]
[1752023791791,1.72553088,109140.0,109130.0,0.06741895]